bitfinex/quotes_SOLUSD_20241202
["timestamp","ask_amount","ask_price","bid_price","bid_amount"]
[1733180688283,15.6394,224.92,224.87,13.05549985]
[1733180688780,15.6394,224.92,224.9,13.05549985]
[1733180689388,15.6394,224.92,224.88,13.05549985]
[1733180690081,13.05549985,224.96,224.89,13.05549985]
[1733180690259,13.05549985,224.93,224.86,13.05549985]
[1733180692361,36.83238385,224.92,224.84,13.05549985]
[1733180692588,13.05549985,224.9,224.83,13.05549985]
[1733180692795,13.05549985,224.91,224.83,13.05549985]
[1733180694165,13.05549985,224.91,224.84,13.05549985]
[1733180694766,23.776884,224.94,224.8,11.1209]
[1733180694767,13.05549985,224.92,224.85,13.05549985]
[1733180694980,13.05549985,224.96,224.89,13.05549985]
[1733180695181,28.55309985,224.97,224.89,13.05549985]
[1733180695584,13.05549985,224.96,224.89,13.05549985]
[1733180696385,23.776884,224.96,224.89,13.05549985]
[1733180697093,36.83238385,224.96,224.9,4.445]
[1733180697576,13.05549985,224.95,224.9,4.445]
[1733180697772,23.776884,224.96,224.9,4.445]
[1733180697773,13.05549985,224.96,224.9,4.445]
[1733180697976,13.05549985,224.96,224.89,4.445]
[1733180698895,13.05549985,224.95,224.89,4.445]
[1733180699688,28.55309985,224.97,224.9,13.05549985]
[1733180699894,15.4976,224.97,224.93,13.05549985]
[1733180700192,13.09138165,225.02,224.95,13.05549985]
[1733180700364,13.05549985,225.01,224.94,13.05549985]
[1733180700879,13.05549985,225.01,224.95,4.445]
[1733180701976,13.05549985,225.0,224.95,4.445]
[1733180702392,13.05549985,225.01,224.95,4.445]
[1733180702692,0.0358818,225.02,224.98,13.05549985]
[1733180703205,13.09138165,225.02,224.95,17.50049985]
[1733180703376,13.05549985,224.99,224.95,4.445]
[1733180703575,13.05549985,224.99,224.92,17.50049985]
[1733180705088,0.0358818,225.02,224.92,17.50049985]
[1733180705089,13.05549985,224.96,224.92,4.445]
[1733180705292,13.05549985,224.95,224.89,4.445]
[1733180705472,13.05549985,225.0,224.93,13.05549985]
[1733180705808,13.05549985,225.01,224.94,13.05549985]
[1733180706189,23.776884,225.0,224.94,13.05549985]
[1733180706707,36.83238385,225.0,224.93,13.05549985]
[1733180708108,0.0358818,225.02,224.95,13.05549985]
[1733180708410,23.8127658,225.02,224.96,13.05549985]
[1733180708915,36.86826565,225.02,224.95,4.445]
[1733180709083,13.05549985,225.01,224.95,4.445]
[1733180709902,46.86826565,225.02,224.95,4.445]
[1733180710106,13.05549985,225.01,224.95,4.445]
[1733180710509,33.8127658,225.02,224.95,17.50049985]
[1733180710707,46.86826565,225.02,224.95,17.50049985]
[1733180711008,13.05549985,225.01,224.95,4.445]
[1733180711599,8.34970691,225.01,224.96,4.445]
[1733180712694,8.34970691,225.01,224.95,4.445]
[1733180713517,8.34970691,224.96,224.83,80.9462]
[1733180713714,8.34970691,224.96,224.89,8.34970691]
[1733180714010,8.34970691,224.97,224.9,8.34970691]
[1733180714201,8.34970691,224.98,224.91,8.34970691]
[1733180714388,8.34970691,224.97,224.91,4.445]
[1733180714585,8.34970691,224.99,224.92,8.34970691]
[1733180714783,8.47519691,225.01,224.94,8.34970691]
[1733180715180,42.16247271,225.02,224.95,8.34970691]
[1733180715416,42.16247271,225.02,224.96,4.445]
[1733180715905,42.16247271,225.02,224.95,8.34970691]
[1733180716510,42.16247271,225.02,224.96,4.445]
[1733180716810,8.34970691,225.01,224.94,8.34970691]
[1733180716979,42.16247271,225.02,224.95,12.79470691]
[1733180717612,46.85822711,225.02,224.95,13.04546131]
[1733180717812,13.04546131,225.01,224.94,17.49046131]
[1733180718117,46.85822711,225.02,224.95,13.04546131]
[1733180718310,13.04546131,225.01,224.94,17.49046131]
[1733180718506,13.04546131,225.0,224.94,4.445]
[1733180719391,13.04546131,225.01,224.94,17.49046131]
[1733180720410,46.85822711,225.02,224.95,13.04546131]
[1733180721122,13.04546131,224.97,224.91,4.445]
[1733180721412,13.04546131,224.96,224.88,13.04546131]
[1733180721579,13.04546131,224.96,224.89,13.04546131]
[1733180723013,13.04546131,224.97,224.89,13.04546131]
[1733180723404,13.04546131,224.97,224.9,13.04546131]
[1733180723711,13.04546131,224.96,224.89,13.04546131]
[1733180723910,13.04546131,224.95,224.88,17.49046131]
[1733180724089,13.04546131,224.93,224.85,4.445]
[1733180724287,28.28096131,224.94,224.87,13.04546131]
[1733180724700,15.2355,224.94,224.87,13.04546131]
[1733180725489,16.2879,225.01,224.94,4.445]
[1733180725914,10.0358818,225.02,224.94,5.33164667]
[1733180726211,10.0358818,225.02,224.97,17.49046131]
[1733180726614,10.0358818,225.02,224.95,13.04546131]
[1733180726819,13.04546131,225.0,224.92,13.04546131]
[1733180729111,13.04546131,225.01,224.93,13.04546131]
[1733180729608,13.04546131,225.0,224.93,13.04546131]
[1733180730610,13.04546131,225.01,224.93,13.04546131]
[1733180731099,13.04546131,225.0,224.92,13.04546131]
[1733180731604,13.04546131,225.01,224.93,13.04546131]
[1733180732928,10.0358818,225.02,224.95,13.04546131]
[1733180733300,23.08134311,225.02,224.94,13.04546131]
[1733180733508,13.04546131,225.01,224.93,13.04546131]
[1733180733717,13.04546131,225.0,224.92,13.04546131]
[1733180733912,13.04546131,225.0,224.93,13.04546131]
[1733180735518,13.04546131,225.0,224.92,13.04546131]
[1733180737001,13.04546131,224.96,224.88,13.04546131]
[1733180737319,13.04546131,224.95,224.87,13.04546131]
[1733180738412,13.04546131,224.93,224.86,13.04546131]
[1733180738705,13.04546131,224.94,224.86,13.04546131]
[1733180738903,13.04546131,224.95,224.87,13.04546131]
[1733180739126,13.04546131,224.94,224.86,13.04546131]
[1733180739831,13.04546131,224.95,224.87,13.04546131]
[1733180740308,13.04546131,224.94,224.87,13.04546131]
[1733180740627,13.04546131,224.93,224.86,13.04546131]
[1733180740923,13.04546131,224.94,224.87,13.04546131]
[1733180741604,8.35514522,224.94,224.87,8.35514522]
[1733180742214,6.4909,224.98,224.9,8.35514522]
[1733180742422,8.35514522,224.97,224.9,8.35514522]
[1733180742814,8.35514522,224.97,224.9,12.80014522]
[1733180743201,14.84604522,224.98,224.91,8.35514522]
[1733180744232,8.35514522,224.97,224.9,12.80014522]
[1733180744930,6.4909,224.98,224.91,8.35514522]
[1733180745108,15.6637,224.99,224.93,8.35514522]
[1733180745427,15.6637,224.99,224.88,0.88686792]
[1733180745428,24.01884522,224.99,224.92,8.35514522]
[1733180745728,24.01884522,224.99,224.91,8.35514522]
[1733180745919,8.35514522,224.98,224.91,8.35514522]
[1733180746117,8.35514522,224.97,224.9,12.80014522]
[1733180748435,15.6637,224.99,224.84,20.0]
[1733180748436,8.35514522,224.94,224.84,20.0]
[1733180748639,8.35514522,224.94,224.83,15.5645]
[1733180749111,8.35514522,224.94,224.86,8.35514522]
[1733180749429,8.35514522,224.94,224.87,4.445]
[1733180749639,8.35514522,224.91,224.84,8.35514522]
[1733180750238,8.35514522,224.91,224.8,6.2549]
[1733180750239,8.35514522,224.9,224.8,11.1209]
[1733180750534,8.35514522,224.88,224.82,4.445]
[1733180750713,8.35514522,224.89,224.82,4.445]
[1733180750919,8.35514522,224.89,224.82,12.80014522]
[1733180751422,8.35514522,224.89,224.82,4.445]
[1733180752913,8.35514522,224.89,224.82,8.35514522]
[1733180753613,13.06105668,224.88,224.81,17.50605668]
[1733180753939,13.06105668,224.87,224.81,17.50605668]
[1733180754112,13.06105668,224.87,224.8,13.06105668]
[1733180754508,16.153,224.91,224.85,13.06105668]
[1733180754722,16.153,224.91,224.86,13.06105668]
[1733180755332,16.153,224.91,224.87,13.06105668]
[1733180758541,16.153,224.91,224.88,13.06105668]
[1733180760352,16.153,224.91,224.87,13.06105668]
[1733180761050,16.153,224.91,224.9,13.06105668]
[1733180761226,6.6483,224.96,224.9,13.06105668]
[1733180761413,13.06105668,224.94,224.86,13.06105668]
[1733180761618,6.6483,224.96,224.82,11.1195]
[1733180761619,6.6483,224.96,224.85,20.0]
[1733180762117,15.9674,224.97,224.85,20.0]
[1733180762433,15.9674,224.97,224.86,20.0]
[1733180762742,35.46043848,225.02,224.95,13.06105668]
[1733180762942,13.18654668,225.01,224.94,13.06105668]
[1733180763532,13.06105668,225.0,224.92,13.06105668]
[1733180763740,13.06105668,224.98,224.9,13.06105668]
[1733180764041,0.12549,225.01,224.88,11.1168]
[1733180764042,13.06105668,224.96,224.88,24.17785668]
[1733180764248,13.06105668,224.96,224.88,13.06105668]
[1733180764541,13.06105668,224.96,224.89,13.06105668]
[1733180764922,13.06105668,224.98,224.9,13.06105668]
[1733180765246,13.06105668,225.0,224.93,13.06105668]
[1733180765632,0.12549,225.01,224.95,13.06105668]
[1733180766247,22.3993818,225.02,224.95,13.06105668]
[1733180766450,15.9965818,225.02,224.98,13.06105668]
[1733180767050,15.9965818,225.02,224.97,13.06105668]
[1733180767427,15.9965818,225.02,224.96,13.06105668]
[1733180767748,29.05763848,225.02,224.95,13.06105668]
[1733180767946,13.06105668,225.01,224.94,13.06105668]
[1733180768640,29.05763848,225.02,224.95,13.06105668]
[1733180769441,15.9965818,225.02,224.97,3.06105668]
[1733180769745,0.0358818,225.02,225.0,13.06105668]
[1733180770053,0.0358818,225.02,224.99,13.06105668]
[1733180771054,0.0358818,225.02,224.98,13.06105668]
[1733180771543,0.0358818,225.02,224.97,13.06105668]
[1733180772544,0.0358818,225.02,224.98,13.06105668]
[1733180772748,0.0358818,225.02,224.97,13.06105668]
[1733180773246,0.0358818,225.02,225.01,13.06105668]
[1733180773954,0.0358818,225.02,225.0,13.06105668]
[1733180774125,0.0358818,225.02,224.99,13.06105668]
[1733180774331,0.0358818,225.02,224.98,17.50605668]
[1733180775437,0.0358818,225.02,224.99,13.06105668]
[1733180775631,0.0358818,225.02,224.99,12.7919903]
[1733180776250,0.0358818,225.02,225.0,8.3469903]
[1733180776557,0.0358818,225.02,224.99,8.3469903]
[1733180776848,0.0358818,225.02,225.0,8.3469903]
[1733180777649,0.0358818,225.02,225.01,8.3469903]
[1733180778450,0.0358818,225.02,225.01,19.4575903]
[1733180778858,0.0358818,225.02,225.01,23.9025903]
[1733180779047,16.4668,225.12,225.1,8.3469903]
[1733180779350,16.4668,225.12,225.08,8.3469903]
[1733180779535,16.4668,225.12,225.09,8.3469903]
[1733180779942,16.4668,225.12,225.09,12.7919903]
[1733180780159,16.4668,225.12,225.04,20.0]
[1733180780336,16.4668,225.12,225.09,8.3469903]
[1733180780872,16.4668,225.12,225.04,31.1089]
[1733180780873,30.2640903,225.18,225.11,4.445]
[1733180781153,0.12549,225.17,225.11,4.445]
[1733180781757,0.12549,225.17,225.1,8.3469903]
[1733180782155,0.12549,225.17,225.04,31.1089]
[1733180782156,21.9171,225.18,225.14,8.3469903]
[1733180782459,15.8015,225.18,225.15,8.3469903]
[1733180783557,15.8015,225.18,225.13,13.02584958]
[1733180783751,15.8015,225.18,225.12,13.02584958]
[1733180784153,6.1111,225.23,225.14,13.02584958]
[1733180784337,13.02584958,225.22,225.15,13.02584958]
[1733180784540,13.15133958,225.21,225.14,13.02584958]
[1733180784750,13.02584958,225.2,225.13,13.02584958]
[1733180785358,13.02584958,225.2,225.12,13.02584958]
[1733180785726,13.02584958,225.2,225.13,13.02584958]
[1733180786036,13.15133958,225.21,225.14,13.02584958]
[1733180787533,6.1111,225.23,225.16,13.02584958]
[1733180787534,19.13694958,225.23,225.16,13.02584958]
[1733180787852,6.1111,225.23,225.17,13.02584958]
[1733180788047,19.13694958,225.23,225.16,13.02584958]
[1733180788243,13.02584958,225.22,225.15,13.02584958]
[1733180789053,13.02584958,225.19,225.12,13.02584958]
[1733180789261,19.13694958,225.23,225.15,13.02584958]
[1733180789439,19.13694958,225.23,225.1,31.106]
[1733180789440,6.1111,225.23,225.17,13.02584958]
[1733180789837,19.13694958,225.23,225.16,13.02584958]
[1733180790037,13.02584958,225.22,225.15,13.02584958]
[1733180790262,19.13694958,225.23,225.16,13.02584958]
[1733180790765,13.02584958,225.22,225.15,13.02584958]
[1733180791137,19.13694958,225.23,225.16,13.02584958]
[1733180791353,29.75803138,225.24,225.17,13.02584958]
[1733180793845,13.02584958,225.23,225.16,13.02584958]
[1733180797956,13.56173138,225.24,225.16,13.02584958]
[1733180799652,0.5358818,225.24,225.18,13.02584958]
[1733180800542,13.56173138,225.24,225.17,13.02584958]
[1733180800839,13.02584958,225.23,225.16,17.47084958]
[1733180801274,13.56173138,225.24,225.17,13.02584958]
[1733180802073,0.5358818,225.24,225.16,4.445]
[1733180802366,0.5358818,225.24,225.23,13.02584958]
[1733180803668,0.5358818,225.24,225.23,8.32871532]
[1733180804568,0.5358818,225.24,225.23,12.77371532]
[1733180805966,0.5358818,225.24,225.2,11.101]
[1733180805967,0.5358818,225.24,225.22,8.32871532]
[1733180806563,0.5358818,225.24,225.21,8.32871532]
[1733180806766,0.5358818,225.24,225.16,11.1028]
[1733180806960,0.5358818,225.24,225.2,12.77371532]
[1733180808072,0.5358818,225.24,225.21,8.32871532]
[1733180808274,0.5358818,225.24,225.17,4.445]
[1733180808275,0.5358818,225.24,225.23,8.32871532]
[1733180808570,0.5358818,225.24,225.22,8.32871532]
[1733180809252,0.5358818,225.24,225.23,4.445]
[1733180809469,0.5358818,225.24,225.22,8.32871532]
[1733180809776,0.5358818,225.24,225.18,11.1021]
[1733180809968,0.5358818,225.24,225.2,8.32871532]
[1733180810175,0.5358818,225.24,225.21,8.32871532]
[1733180810474,0.5358818,225.24,225.22,4.445]
[1733180811668,0.5358818,225.24,225.23,4.445]
[1733180812551,0.5358818,225.24,225.21,8.32871532]
[1733180812752,0.5358818,225.24,225.22,4.445]
[1733180813276,0.5358818,225.24,225.22,8.32871532]
[1733180813464,0.5358818,225.24,225.21,8.32871532]
[1733180813980,0.5358818,225.24,225.22,4.445]
[1733180814271,0.5358818,225.24,225.23,4.445]
[1733180815475,0.5358818,225.24,225.21,8.32871532]
[1733180815476,0.5358818,225.24,225.22,4.445]
[1733180816882,0.5358818,225.24,225.21,4.445]
[1733180818860,0.5358818,225.24,225.16,20.0]
[1733180819174,8.86459712,225.24,225.16,8.32871532]
[1733180819364,8.86459712,225.24,225.17,8.32871532]
[1733180819563,0.5358818,225.24,225.17,8.32871532]
[1733180819764,0.5358818,225.24,225.19,8.32871532]
[1733180820159,0.5358818,225.24,225.2,4.445]
[1733180820780,0.5358818,225.24,225.18,8.32871532]
[1733180821277,0.5358818,225.24,225.19,8.32871532]
[1733180821584,0.5358818,225.24,225.18,8.32871532]
[1733180822371,0.5358818,225.24,225.2,8.32871532]
[1733180823297,0.5358818,225.24,225.21,4.445]
[1733180823456,0.5358818,225.24,225.23,8.32871532]
[1733180823784,0.5358818,225.24,225.21,8.32871532]
[1733180824865,0.5358818,225.24,225.22,8.32871532]
[1733180825678,0.5358818,225.24,225.23,19.42841532]
[1733180827487,0.07822122,225.24,225.23,23.87341532]
[1733180827691,0.07822122,225.24,225.18,92.2036]
[1733180827871,0.07822122,225.24,225.23,8.32871532]
[1733180828585,0.07822122,225.24,225.23,12.77371532]
[1733180828960,0.07822122,225.24,225.22,11.1001]
[1733180829165,0.07822122,225.24,225.23,8.32871532]
[1733180830592,0.07822122,225.24,225.23,12.77371532]
[1733180832376,0.07822122,225.24,225.23,8.32871532]
[1733180835573,0.07822122,225.24,225.23,12.77371532]
[1733180835771,0.07822122,225.24,225.23,8.32871532]
[1733180836094,2.122e-05,225.24,225.23,8.32871532]
[1733180836891,16.3748,225.34,225.24,11.0992]
[1733180837187,16.3748,225.34,225.27,20.0]
[1733180837493,16.3748,225.34,225.32,8.32871532]
[1733180837683,16.3748,225.34,225.31,8.32871532]
[1733180838299,16.3748,225.34,225.27,24.445]
[1733180838474,8.32871532,225.33,225.26,8.32871532]
[1733180838673,16.3748,225.34,225.27,8.32871532]
[1733180839104,16.3748,225.34,225.28,8.32871532]
[1733180840100,16.3748,225.34,225.21,20.0]
[1733180840307,16.3748,225.34,225.29,8.32871532]
[1733180840491,16.3748,225.34,225.19,23.902374]
[1733180840492,16.3748,225.34,225.3,8.32871532]
[1733180840684,16.3748,225.34,225.31,8.32871532]
[1733180840899,16.3748,225.34,225.32,8.32871532]
[1733180841102,16.3748,225.34,225.3,8.32871532]
[1733180842805,16.3748,225.34,225.28,8.32871532]
[1733180843315,16.3748,225.34,225.29,8.32871532]
[1733180845595,16.3748,225.34,225.27,8.32871532]
[1733180845800,16.3748,225.34,225.23,20.0]
[1733180845801,24.70351532,225.34,225.23,20.0]
[1733180845995,24.70351532,225.34,225.27,8.32871532]
[1733180846518,32.10559932,225.33,225.23,20.0]
[1733180846688,32.10559932,225.33,225.26,8.32871532]
[1733180847319,16.3748,225.34,225.3,8.32871532]
[1733180847610,16.3748,225.34,225.28,8.32871532]
[1733180848118,16.3748,225.34,225.29,8.32871532]
[1733180849499,16.3748,225.34,225.31,8.32871532]
[1733180850499,16.3748,225.34,225.3,8.32871532]
[1733180851033,6.3727,225.36,225.33,8.32871532]
[1733180851189,6.3727,225.36,225.32,8.32871532]
[1733180851390,6.3727,225.36,225.31,8.32871532]
[1733180851606,6.3727,225.36,225.32,8.32871532]
[1733180851820,6.3727,225.36,225.33,4.445]
[1733180852319,15.723,225.39,225.26,11.0982]
[1733180852496,15.723,225.39,225.33,8.32871532]
[1733180853302,15.723,225.39,225.34,8.32871532]
[1733180853616,15.723,225.39,225.36,8.32871532]
[1733180853817,6.5219,225.42,225.36,8.32871532]
[1733180854191,6.5219,225.42,225.35,8.32871532]
[1733180854493,6.5219,225.42,225.37,4.445]
[1733180855119,14.85061532,225.42,225.34,8.32871532]
[1733180855627,6.5219,225.42,225.36,12.77371532]
[1733180856406,6.5219,225.42,225.29,11.0967]
[1733180856407,8.32871532,225.4,225.29,11.0967]
[1733180856729,8.32871532,225.39,225.32,8.32871532]
[1733180857212,8.32871532,225.4,225.33,8.32871532]
[1733180857415,23.902374,225.41,225.34,8.32871532]
[1733180857622,32.23108932,225.41,225.34,8.32871532]
[1733180857805,8.32871532,225.4,225.35,4.445]
[1733180858001,8.32871532,225.39,225.32,8.32871532]
[1733180858230,8.32871532,225.4,225.33,8.32871532]
[1733180858431,8.32871532,225.4,225.34,4.445]
[1733180859209,0.12549,225.41,225.33,8.32871532]
[1733180859407,8.32871532,225.4,225.33,8.32871532]
[1733180859604,8.45420532,225.41,225.33,8.32871532]
[1733180860619,8.45420532,225.41,225.34,4.445]
[1733180860906,8.32871532,225.39,225.35,4.445]
[1733180861214,8.32871532,225.4,225.35,4.445]
[1733180861923,8.32871532,225.4,225.33,4.445]
[1733180862427,8.32871532,225.39,225.29,11.0968]
[1733180862638,8.32871532,225.36,225.3,4.445]
[1733180863325,8.32871532,225.36,225.28,8.32871532]
[1733180863528,24.58391532,225.36,225.26,15.5432]
[1733180863710,16.2552,225.36,225.3,4.445]
[1733180864628,16.2552,225.36,225.31,4.445]
[1733180865546,16.2552,225.36,225.32,4.445]
[1733180866609,16.2552,225.36,225.31,4.445]
[1733180867408,16.2552,225.36,225.31,12.77371532]
[1733180868730,16.2552,225.36,225.31,4.445]
[1733180869829,16.2552,225.36,225.3,8.32871532]
[1733180870013,16.2552,225.36,225.31,4.445]
[1733180870415,16.2552,225.36,225.3,8.32871532]
[1733180871925,16.2552,225.36,225.31,8.32871532]
[1733180872539,16.2552,225.36,225.3,8.32871532]
[1733180873214,16.2552,225.36,225.32,8.32871532]
[1733180877527,8.32871532,225.41,225.34,8.32871532]
[1733180877728,8.32871532,225.41,225.35,4.445]
[1733180878032,8.32871532,225.41,225.24,11.0992]
[1733180878245,8.32871532,225.41,225.32,8.32871532]
[1733180878835,8.32871532,225.41,225.33,4.445]
[1733180879241,8.32871532,225.41,225.34,8.32871532]
[1733180879426,8.32871532,225.41,225.25,0.88526355]
[1733180879618,8.32871532,225.4,225.32,8.32871532]
[1733180879818,8.32871532,225.4,225.33,4.445]
[1733180880018,8.32871532,225.4,225.33,8.32871532]
[1733180880236,8.32871532,225.41,225.33,8.32871532]
[1733180880416,8.32871532,225.4,225.33,8.32871532]
[1733180880919,8.32871532,225.4,225.34,4.445]
[1733180881321,8.32871532,225.41,225.34,4.445]
[1733180881547,8.32871532,225.41,225.33,8.32871532]
[1733180881841,8.32871532,225.41,225.34,4.445]
[1733180883940,8.32871532,225.41,225.33,8.32871532]
[1733180884144,8.32871532,225.41,225.34,4.445]
[1733180884345,8.32871532,225.4,225.34,4.445]
[1733180884638,8.32871532,225.4,225.33,8.32871532]
[1733180884811,8.32871532,225.4,225.32,8.32871532]
[1733180885016,8.32871532,225.39,225.32,4.445]
[1733180885217,8.32871532,225.38,225.3,8.32871532]
[1733180885520,8.32871532,225.37,225.3,8.32871532]
[1733180885718,8.32871532,225.38,225.3,8.32871532]
[1733180885939,8.32871532,225.37,225.3,8.32871532]
[1733180886150,8.32871532,225.36,225.3,4.445]
[1733180887165,8.32871532,225.37,225.3,8.32871532]
[1733180887350,8.32871532,225.36,225.29,12.77371532]
[1733180888645,8.32871532,225.3,225.22,8.32871532]
[1733180888846,8.32871532,225.29,225.22,8.32871532]
[1733180889026,21.6135,225.35,225.23,8.32871532]
[1733180889224,8.32871532,225.3,225.23,8.32871532]
[1733180889430,8.32871532,225.28,225.21,8.32871532]
[1733180890235,8.32871532,225.29,225.22,8.32871532]
[1733180890547,8.32871532,225.29,225.18,11.1017]
[1733180890729,32.7073,225.35,225.23,8.32871532]
[1733180890929,8.32871532,225.32,225.25,8.32871532]
[1733180891644,8.32871532,225.31,225.25,4.445]
[1733180891946,8.32871532,225.31,225.24,8.32871532]
[1733180892167,32.7073,225.35,225.25,8.32871532]
[1733180892168,8.32871532,225.32,225.25,8.32871532]
[1733180892335,8.32871532,225.31,225.25,8.32871532]
[1733180892652,8.32871532,225.31,225.25,4.445]
[1733180893033,8.32871532,225.31,225.26,4.445]
[1733180893981,8.32871532,225.32,225.25,12.77371532]
[1733180894144,21.6135,225.35,225.28,8.32871532]
[1733180894459,29.94221532,225.35,225.28,8.32871532]
[1733180894953,29.94221532,225.35,225.29,4.445]
[1733180895160,8.32871532,225.34,225.3,4.445]
[1733180896273,8.32871532,225.34,225.28,4.445]
[1733180896649,29.94221532,225.35,225.28,12.77371532]
[1733180897565,8.32871532,225.34,225.28,4.445]
[1733180897868,8.32871532,225.33,225.28,4.445]
[1733180898069,8.32871532,225.33,225.22,23.776884]
[1733180898274,8.32871532,225.33,225.27,4.445]
[1733180898475,8.32871532,225.33,225.26,8.32871532]
[1733180898669,8.32871532,225.32,225.25,8.32871532]
[1733180899349,8.32871532,225.32,225.26,4.437]
[1733180900353,8.32871532,225.34,225.26,8.32871532]
[1733180900556,8.32871532,225.34,225.27,4.437]
[1733180901574,8.32871532,225.34,225.28,4.437]
[1733180902843,29.94221532,225.35,225.29,4.437]
[1733180903250,29.94221532,225.35,225.28,8.32871532]
[1733180903581,8.32871532,225.34,225.27,8.32871532]
[1733180903962,8.32871532,225.33,225.27,8.32871532]
[1733180904576,8.32871532,225.33,225.21,11.1006]
[1733180904577,8.32871532,225.34,225.21,11.1006]
[1733180904757,8.32871532,225.34,225.27,8.32871532]
[1733180905471,8.32871532,225.34,225.28,4.437]
[1733180907285,8.32871532,225.29,225.21,8.32871532]
[1733180907458,8.32871532,225.28,225.21,8.32871532]
[1733180908166,8.32871532,225.28,225.22,4.437]
[1733180909580,8.32871532,225.29,225.22,4.437]
[1733180909879,8.32871532,225.29,225.23,4.437]
[1733180911473,8.32871532,225.29,225.22,8.32871532]
[1733180911652,24.66571532,225.3,225.24,4.437]
[1733180912233,16.337,225.3,225.25,8.32871532]
[1733180912653,16.337,225.3,225.27,4.437]
[1733180913863,16.337,225.3,225.26,4.437]
[1733180914061,16.337,225.3,225.25,8.32871532]
[1733180914263,14.71451532,225.35,225.28,8.32871532]
[1733180914591,8.32871532,225.34,225.27,8.32871532]
[1733180915083,8.32871532,225.33,225.28,4.437]
[1733180915551,8.32871532,225.33,225.26,8.32871532]
[1733180916160,8.32871532,225.33,225.27,4.437]
[1733180916861,8.32871532,225.32,225.2,31.1012]
[1733180917066,0.12549,225.34,225.26,4.437]
[1733180917067,8.32871532,225.31,225.26,4.437]
[1733180917569,0.12549,225.34,225.26,4.437]
[1733180917876,8.32871532,225.32,225.26,4.437]
[1733180918383,8.32871532,225.29,225.23,8.32871532]
[1733180918885,8.32871532,225.3,225.23,8.32871532]
[1733180919471,23.902374,225.34,225.24,4.437]
[1733180919671,23.902374,225.34,225.26,8.32871532]
[1733180919871,8.32871532,225.32,225.25,8.32871532]
[1733180920088,8.32871532,225.3,225.24,8.32871532]
[1733180920381,8.32871532,225.3,225.25,4.437]
[1733180921085,8.32871532,225.31,225.25,4.437]
[1733180922579,8.32871532,225.3,225.24,4.437]
[1733180923065,8.32871532,225.31,225.24,12.76571532]
[1733180923894,8.32871532,225.3,225.24,4.437]
[1733180925175,8.32871532,225.29,225.24,4.437]
[1733180925491,8.32871532,225.29,225.19,20.0]
[1733180925792,24.90701532,225.28,225.21,8.32871532]
[1733180925967,16.5783,225.28,225.21,8.32871532]
[1733180927386,16.5783,225.28,225.22,4.437]
[1733180929389,16.5783,225.28,225.21,8.32871532]
[1733180929686,24.90701532,225.28,225.22,4.437]
[1733180929986,8.32871532,225.26,225.16,20.0]
[1733180930161,8.32871532,225.27,225.2,8.32871532]
[1733180930570,8.32871532,225.27,225.21,4.437]
[1733180931301,8.32871532,225.27,225.2,8.32871532]
[1733180931683,8.32871532,225.27,225.21,4.437]
[1733180932006,8.32871532,225.27,225.2,8.32871532]
[1733180932595,8.32871532,225.26,225.19,8.32871532]
[1733180933296,8.32871532,225.22,225.16,8.32871532]
[1733180933599,8.32871532,225.23,225.17,8.32871532]
[1733180933796,8.32871532,225.23,225.14,4.437]
[1733180933971,8.32871532,225.22,225.15,8.32871532]
[1733180934170,8.32871532,225.22,225.16,4.437]
[1733180934484,155.3354,225.27,225.1,11.1061]
[1733180934485,8.32871532,225.2,225.14,8.32871532]
[1733180934715,8.32871532,225.19,225.14,4.437]
[1733180935177,8.32871532,225.19,225.13,8.32871532]
[1733180935178,8.32871532,225.19,225.11,4.437]
[1733180935491,8.32871532,225.17,225.14,4.437]
[1733180935700,8.32871532,225.15,225.06,11.108]
[1733180936002,8.32871532,225.14,225.07,8.32871532]
[1733180936293,8.32871532,225.15,225.08,8.32871532]
[1733180936996,8.32871532,225.12,225.05,8.32871532]
[1733180937223,8.32871532,225.1,224.99,11.1112]
[1733180937373,24.55941532,225.11,225.04,8.32871532]
[1733180937573,24.55941532,225.11,224.99,11.1112]
[1733180937574,16.2307,225.11,224.99,11.1112]
[1733180938298,16.2307,225.11,225.05,8.32871532]
[1733180938506,8.32871532,225.1,225.03,8.32871532]
[1733180938692,24.55941532,225.11,225.04,8.32871532]
[1733180940006,24.55941532,225.11,225.03,8.32871532]
[1733180940386,8.32871532,225.08,224.97,4.8605]
[1733180940611,8.32871532,225.08,225.01,8.32871532]
[1733180941199,8.32871532,225.07,224.98,20.0]
[1733180941482,6.0753,225.1,225.03,8.32871532]